[Event "Early-Titled-Tuesday-Blitz-March-05-2024"]
[Site "Chess.com"]
[Date "2024.03.05"]
[Round "8"]
[White "corvachesky"]
[Black "WilsonPalencia21"]
[Result "1-0"]
[WhiteElo "2501"]
[BlackElo "2573"]
[TimeControl "180+1"]
[EndTime "9:31:15 PST"]
[Termination "corvachesky won by checkmate"]

1. Nf3 {[%clk 0:02:47.2]} 1... c5 {[%clk 0:02:55.5]} 2. c4 {[%clk 0:02:46.7]}
2... g6 {[%clk 0:02:48.9]} 3. g3 {[%clk 0:02:43.3]} 3... Bg7 {[%clk 0:02:45]} 4.
d4 {[%clk 0:02:43.9]} 4... Nf6 {[%clk 0:02:43.8]} 5. Nc3 {[%clk 0:02:41.2]} 5...
O-O {[%clk 0:02:13.5]} 6. Bg2 {[%clk 0:02:40.1]} 6... d6 {[%clk 0:02:13.9]} 7.
O-O {[%clk 0:02:38.1]} 7... Nc6 {[%clk 0:02:14.3]} 8. dxc5 {[%clk 0:02:23.2]}
8... dxc5 {[%clk 0:02:13.9]} 9. Be3 {[%clk 0:02:24.1]} 9... b6 {[%clk
0:02:12.5]} 10. Ne5 {[%clk 0:02:19.2]} 10... Nxe5 {[%clk 0:02:12.6]} 11. Bxa8
{[%clk 0:02:19.7]} 11... Nxc4 {[%clk 0:02:11]} 12. Qxd8 {[%clk 0:02:19.1]} 12...
Rxd8 {[%clk 0:02:10.5]} 13. Rad1 {[%clk 0:02:18.8]} 13... Rf8 {[%clk 0:02:03.4]}
14. Bc1 {[%clk 0:02:14.4]} 14... Ba6 {[%clk 0:02:02.2]} 15. Bg2 {[%clk
0:02:10.4]} 15... Nd6 {[%clk 0:01:59.4]} 16. Rfe1 {[%clk 0:02:03.6]} 16... Nf5
{[%clk 0:01:48.4]} 17. Bf4 {[%clk 0:01:51.9]} 17... Nh5 {[%clk 0:01:42]} 18. Rd7
{[%clk 0:01:44.3]} 18... Nxf4 {[%clk 0:01:12.5]} 19. gxf4 {[%clk 0:01:45.2]}
19... Bc4 {[%clk 0:00:47.4]} 20. Rxa7 {[%clk 0:01:37.9]} 20... b5 {[%clk
0:00:47]} 21. Ne4 {[%clk 0:00:52.6]} 21... Rc8 {[%clk 0:00:40.4]} 22. b3 {[%clk
0:00:42.5]} 22... Bd5 {[%clk 0:00:32.2]} 23. Ng3 {[%clk 0:00:33.6]} 23... Bxg2
{[%clk 0:00:28.4]} 24. Kxg2 {[%clk 0:00:32.4]} 24... Nd6 {[%clk 0:00:11.5]} 25.
Rxe7 {[%clk 0:00:29]} 25... c4 {[%clk 0:00:11.8]} 26. Rd7 {[%clk 0:00:28.1]}
26... Ne8 {[%clk 0:00:09]} 27. bxc4 {[%clk 0:00:27.8]} 27... bxc4 {[%clk
0:00:08.9]} 28. Rc1 {[%clk 0:00:21.3]} 28... h5 {[%clk 0:00:07.9]} 29. e4 {[%clk
0:00:20.6]} 29... h4 {[%clk 0:00:08]} 30. Ne2 {[%clk 0:00:20.5]} 30... Nf6
{[%clk 0:00:08.1]} 31. Rb7 {[%clk 0:00:13.2]} 31... Nxe4 {[%clk 0:00:07.4]} 32.
a4 {[%clk 0:00:12.2]} 32... Nc5 {[%clk 0:00:06.8]} 33. Rxc4 {[%clk 0:00:07.9]}
33... Nxb7 {[%clk 0:00:06.1]} 34. Rxc8+ {[%clk 0:00:07.8]} 34... Kh7 {[%clk
0:00:07]} 35. Rc7 {[%clk 0:00:07.9]} 35... Na5 {[%clk 0:00:04.6]} 36. Rc5 {[%clk
0:00:06.6]} 36... Nb7 {[%clk 0:00:02.9]} 37. Rc7 {[%clk 0:00:05.6]} 37... Na5
{[%clk 0:00:03.1]} 38. Rxf7 {[%clk 0:00:06.1]} 38... Kg8 {[%clk 0:00:03]} 39.
Ra7 {[%clk 0:00:05.8]} 39... Nc6 {[%clk 0:00:03.4]} 40. Ra8+ {[%clk 0:00:05.6]}
40... Kf7 {[%clk 0:00:03.1]} 41. a5 {[%clk 0:00:06.5]} 41... Bf8 {[%clk
0:00:02.8]} 42. a6 {[%clk 0:00:06.6]} 42... Bc5 {[%clk 0:00:02.4]} 43. Rc8
{[%clk 0:00:06.5]} 43... Nd4 {[%clk 0:00:02.6]} 44. Rxc5 {[%clk 0:00:04.7]}
44... Nxe2 {[%clk 0:00:02.9]} 45. a7 {[%clk 0:00:04.6]} 45... Nxf4+ {[%clk
0:00:03.5]} 46. Kf3 {[%clk 0:00:04.9]} 46... Ne6 {[%clk 0:00:04.4]} 47. Ra5
{[%clk 0:00:03.4]} 47... Nd4+ {[%clk 0:00:03.9]} 48. Ke4 {[%clk 0:00:02.9]}
48... Nc6 {[%clk 0:00:04.5]} 49. a8=Q {[%clk 0:00:03.1]} 49... Ne7 {[%clk
0:00:04.3]} 50. Ra7 {[%clk 0:00:02.7]} 50... Kf6 {[%clk 0:00:04.3]} 51. Rxe7
{[%clk 0:00:03.1]} 51... Kg5 {[%clk 0:00:05.1]} 52. Qg8 {[%clk 0:00:02.8]} 52...
Kg4 {[%clk 0:00:06]} 53. Qxg6+ {[%clk 0:00:02.9]} 53... Kh3 {[%clk 0:00:06.9]}
54. Qh5 {[%clk 0:00:03]} 54... Kg2 {[%clk 0:00:07.2]} 55. Qg4+ {[%clk
0:00:02.9]} 55... Kf1 {[%clk 0:00:08.1]} 56. f4 {[%clk 0:00:02.7]} 56... Kf2
{[%clk 0:00:08.4]} 57. f5 {[%clk 0:00:03.6]} 57... Ke1 {[%clk 0:00:09.1]} 58. f6
{[%clk 0:00:04.5]} 58... Kd2 {[%clk 0:00:10]} 59. f7 {[%clk 0:00:05.2]} 59...
Ke1 {[%clk 0:00:10.9]} 60. f8=Q {[%clk 0:00:05.8]} 60... Kd2 {[%clk 0:00:11.7]}
61. Qf2+ {[%clk 0:00:05.8]} 61... Kc1 {[%clk 0:00:10.4]} 62. Qge2 {[%clk
0:00:05.2]} 62... Kb1 {[%clk 0:00:10.3]} 63. Qb2# {[%clk 0:00:05.5]} 1-0

[Event "Early-Titled-Tuesday-Blitz-March-05-2024"]
[Site "Chess.com"]
[Date "2024.03.05"]
[Round "8"]
[White "Yeritsyaan"]
[Black "Byniolus"]
[Result "1/2-1/2"]
[WhiteElo "2618"]
[BlackElo "2807"]
[TimeControl "180+1"]
[EndTime "9:31:18 PST"]
[Termination "Game drawn by repetition"]

1. c4 {[%clk 0:02:58.2]} 1... c6 {[%clk 0:02:59.2]} 2. d4 {[%clk 0:02:56.2]}
2... d5 {[%clk 0:02:59.4]} 3. Nc3 {[%clk 0:02:56]} 3... Nf6 {[%clk 0:02:59.8]}
4. cxd5 {[%clk 0:02:56.4]} 4... cxd5 {[%clk 0:03:00]} 5. f3 {[%clk 0:02:56.9]}
5... Nc6 {[%clk 0:02:52.5]} 6. e4 {[%clk 0:02:53.8]} 6... e6 {[%clk 0:02:52.6]}
7. e5 {[%clk 0:02:48.3]} 7... Nd7 {[%clk 0:02:43.7]} 8. f4 {[%clk 0:02:47.5]}
8... Be7 {[%clk 0:02:38.7]} 9. Nf3 {[%clk 0:02:47.8]} 9... O-O {[%clk
0:02:37.3]} 10. Bd3 {[%clk 0:02:48.5]} 10... f5 {[%clk 0:02:34.5]} 11. exf6
{[%clk 0:02:43.7]} 11... Bxf6 {[%clk 0:02:28.4]} 12. Be3 {[%clk 0:02:40.8]}
12... Nb4 {[%clk 0:02:15]} 13. Bb1 {[%clk 0:02:36.5]} 13... b6 {[%clk
0:02:14.8]} 14. a3 {[%clk 0:02:35.2]} 14... Nc6 {[%clk 0:02:15]} 15. O-O {[%clk
0:02:34.2]} 15... Ba6 {[%clk 0:02:14.3]} 16. Re1 {[%clk 0:02:30.5]} 16... Rc8
{[%clk 0:02:05.3]} 17. Ne5 {[%clk 0:02:30.4]} 17... Ndxe5 {[%clk 0:01:45.8]} 18.
fxe5 {[%clk 0:02:31.3]} 18... Bg5 {[%clk 0:01:45.6]} 19. Bd3 {[%clk 0:02:01.1]}
19... Bxe3+ {[%clk 0:01:38.5]} 20. Rxe3 {[%clk 0:02:02]} 20... Bxd3 {[%clk
0:01:36.6]} 21. Qxd3 {[%clk 0:02:00.1]} 21... Qh4 {[%clk 0:01:33.2]} 22. Rd1
{[%clk 0:01:54.4]} 22... Rf5 {[%clk 0:01:09.5]} 23. g3 {[%clk 0:01:36]} 23...
Qg4 {[%clk 0:01:09.3]} 24. Qe2 {[%clk 0:01:31.4]} 24... h5 {[%clk 0:01:02]} 25.
Qxg4 {[%clk 0:01:29]} 25... hxg4 {[%clk 0:01:02.9]} 26. Ne2 {[%clk 0:01:29.3]}
26... g5 {[%clk 0:01:01.1]} 27. Rc3 {[%clk 0:01:26.8]} 27... Rff8 {[%clk
0:00:42.3]} 28. Rdc1 {[%clk 0:01:24.7]} 28... Ne7 {[%clk 0:00:41.9]} 29. Rxc8
{[%clk 0:01:18.5]} 29... Rxc8 {[%clk 0:00:42.8]} 30. Rxc8+ {[%clk 0:01:18.3]}
30... Nxc8 {[%clk 0:00:43.7]} 31. Kg2 {[%clk 0:01:13.5]} 31... Ne7 {[%clk
0:00:36]} 32. h3 {[%clk 0:01:11.9]} 32... Nf5 {[%clk 0:00:36.6]} 33. hxg4 {[%clk
0:01:10.1]} 33... Ne3+ {[%clk 0:00:37]} 34. Kf3 {[%clk 0:01:09.8]} 34... Nc4
{[%clk 0:00:37.9]} 35. Nc1 {[%clk 0:00:48.4]} 35... Nxb2 {[%clk 0:00:36.2]} 36.
Ke2 {[%clk 0:00:46]} 36... b5 {[%clk 0:00:30.9]} 37. Kd2 {[%clk 0:00:38.5]}
37... Nc4+ {[%clk 0:00:28.4]} 38. Kc3 {[%clk 0:00:39.1]} 38... a5 {[%clk
0:00:26.4]} 39. Kb3 {[%clk 0:00:36.9]} 39... Ne3 {[%clk 0:00:17.1]} 40. Nd3
{[%clk 0:00:32.1]} 40... Nxg4 {[%clk 0:00:15.8]} 41. Nc5 {[%clk 0:00:31.2]}
41... Kf7 {[%clk 0:00:16.3]} 42. Nb7 {[%clk 0:00:31.5]} 42... a4+ {[%clk
0:00:12.1]} 43. Kb4 {[%clk 0:00:31.9]} 43... Ne3 {[%clk 0:00:13]} 44. Nd6+
{[%clk 0:00:30.7]} 44... Kg6 {[%clk 0:00:11.5]} 45. Nxb5 {[%clk 0:00:31.6]}
45... Nf5 {[%clk 0:00:10.1]} 46. g4 {[%clk 0:00:25.2]} 46... Ne3 {[%clk
0:00:08.9]} 47. Kxa4 {[%clk 0:00:24.3]} 47... Nxg4 {[%clk 0:00:08.8]} 48. Kb3
{[%clk 0:00:20.6]} 48... Ne3 {[%clk 0:00:08.6]} 49. Nc3 {[%clk 0:00:19.3]} 49...
Kf5 {[%clk 0:00:06.8]} 50. a4 {[%clk 0:00:18.7]} 50... Nc4 {[%clk 0:00:06.9]}
51. Kb4 {[%clk 0:00:18.4]} 51... g4 {[%clk 0:00:07.6]} 52. a5 {[%clk 0:00:13.7]}
52... Nxa5 {[%clk 0:00:07.5]} 53. Kxa5 {[%clk 0:00:14.6]} 53... g3 {[%clk
0:00:08.3]} 54. Kb4 {[%clk 0:00:12.8]} 54... g2 {[%clk 0:00:07.6]} 55. Ne2
{[%clk 0:00:13.4]} 55... Ke4 {[%clk 0:00:08.5]} 56. Kc5 {[%clk 0:00:13.6]} 56...
Ke3 {[%clk 0:00:07.8]} 57. Ng1 {[%clk 0:00:13.6]} 57... Kd3 {[%clk 0:00:07.1]}
58. Nh3 {[%clk 0:00:12.2]} 58... Ke3 {[%clk 0:00:05.2]} 59. Ng1 {[%clk
0:00:12.2]} 59... Ke4 {[%clk 0:00:03.5]} 60. Nh3 {[%clk 0:00:08.4]} 60... Ke3
{[%clk 0:00:03.9]} 61. Ng1 {[%clk 0:00:08.8]} 1/2-1/2

[Event "Early-Titled-Tuesday-Blitz-March-05-2024"]
[Site "Chess.com"]
[Date "2024.03.05"]
[Round "8"]
[White "bylavochka"]
[Black "jamengrand"]
[Result "1-0"]
[WhiteElo "2339"]
[BlackElo "2445"]
[TimeControl "180+1"]
[EndTime "9:31:22 PST"]
[Termination "bylavochka won by resignation"]

1. e4 {[%clk 0:03:00.9]} 1... e5 {[%clk 0:01:52.9]} 2. Nf3 {[%clk 0:02:55]} 2...
Nc6 {[%clk 0:01:53]} 3. Nc3 {[%clk 0:02:50.1]} 3... Nf6 {[%clk 0:01:27.9]} 4.
Bb5 {[%clk 0:02:50.2]} 4... Nd4 {[%clk 0:01:26.8]} 5. Nxd4 {[%clk 0:02:45.2]}
5... exd4 {[%clk 0:01:26.4]} 6. Ne2 {[%clk 0:02:40.6]} 6... Nxe4 {[%clk
0:01:20.4]} 7. Nxd4 {[%clk 0:02:36.4]} 7... Bc5 {[%clk 0:01:20.4]} 8. c3 {[%clk
0:01:30.8]} 8... Qg5 {[%clk 0:01:11.2]} 9. Qf3 {[%clk 0:01:20.5]} 9... Bxd4
{[%clk 0:01:06.4]} 10. Qxe4+ {[%clk 0:01:20.3]} 10... Kd8 {[%clk 0:01:06.5]} 11.
O-O {[%clk 0:01:05]} 11... Bb6 {[%clk 0:00:39.5]} 12. Bc4 {[%clk 0:00:56.9]}
12... Re8 {[%clk 0:00:34.8]} 13. Qf3 {[%clk 0:00:57]} 13... d5 {[%clk
0:00:18.1]} 14. Bxd5 {[%clk 0:00:54.1]} 14... Bg4 {[%clk 0:00:17]} 15. d4 {[%clk
0:00:37.7]} 15... Bxf3 {[%clk 0:00:13.9]} 16. Bxg5+ {[%clk 0:00:37.3]} 16... f6
{[%clk 0:00:14.3]} 17. Bxf6+ {[%clk 0:00:37]} 17... gxf6 {[%clk 0:00:13.9]} 18.
Bxf3 {[%clk 0:00:36.3]} 18... c6 {[%clk 0:00:14.4]} 19. Rfe1 {[%clk 0:00:35.8]}
19... Rg8 {[%clk 0:00:13.5]} 20. Re6 {[%clk 0:00:35.5]} 20... Rg6 {[%clk
0:00:12.9]} 21. Rae1 {[%clk 0:00:34.1]} 21... Rc8 {[%clk 0:00:11.7]} 22. Re7
{[%clk 0:00:32.3]} 22... Rc7 {[%clk 0:00:10]} 23. Re8+ {[%clk 0:00:31.9]} 23...
Kd7 {[%clk 0:00:10]} 24. R1e7+ {[%clk 0:00:24.4]} 24... Kd6 {[%clk 0:00:10.3]}
25. Rxc7 {[%clk 0:00:19.8]} 25... Bxc7 {[%clk 0:00:10.6]} 26. Be4 {[%clk
0:00:15.3]} 26... Rg7 {[%clk 0:00:09.7]} 27. Bd3 {[%clk 0:00:10.3]} 27... a5
{[%clk 0:00:09.7]} 28. g3 {[%clk 0:00:07.2]} 28... b5 {[%clk 0:00:09.9]} 29. Bf5
{[%clk 0:00:05.8]} 29... a4 {[%clk 0:00:09.5]} 30. Re6+ {[%clk 0:00:05.2]} 30...
Kd5 {[%clk 0:00:09.4]} 31. Rxf6 {[%clk 0:00:05.6]} 31... Bd8 {[%clk 0:00:08.7]}
32. Re6 {[%clk 0:00:03.8]} 32... a3 {[%clk 0:00:09]} 33. b3 {[%clk 0:00:03.2]}
33... b4 {[%clk 0:00:09.5]} 34. c4+ {[%clk 0:00:02.2]} 34... Kxd4 {[%clk
0:00:09.8]} 35. Rd6+ {[%clk 0:00:02.3]} 35... Kc3 {[%clk 0:00:09.8]} 36. Rxd8
{[%clk 0:00:03.2]} 36... Kb2 {[%clk 0:00:10.2]} 37. Rd2+ {[%clk 0:00:02.5]}
37... Ka1 {[%clk 0:00:09.3]} 38. Rc2 {[%clk 0:00:02.3]} 38... c5 {[%clk
0:00:09.5]} 39. g4 {[%clk 0:00:02.7]} 39... h5 {[%clk 0:00:09]} 40. h3 {[%clk
0:00:03.2]} 40... hxg4 {[%clk 0:00:09]} 41. hxg4 {[%clk 0:00:04.1]} 41... Re7
{[%clk 0:00:08.6]} 42. Kg2 {[%clk 0:00:04.2]} 42... Re5 {[%clk 0:00:08.3]} 43.
Kf3 {[%clk 0:00:03.7]} 43... Re1 {[%clk 0:00:08.3]} 44. g5 {[%clk 0:00:03.1]}
44... Rb1 {[%clk 0:00:08.5]} 45. g6 {[%clk 0:00:02.4]} 45... Rb2 {[%clk
0:00:08.8]} 46. g7 {[%clk 0:00:01.6]} 46... Rxc2 {[%clk 0:00:08.7]} 47. Bxc2
{[%clk 0:00:02.5]} 47... Kxa2 {[%clk 0:00:08.9]} 48. Bd3 {[%clk 0:00:01.8]}
48... Kb2 {[%clk 0:00:09.8]} 49. g8=Q {[%clk 0:00:01.8]} 49... a2 {[%clk
0:00:10.7]} 50. Qg7+ {[%clk 0:00:02.2]} 50... Kxb3 {[%clk 0:00:10.5]} 51. Ke4
{[%clk 0:00:02.1]} 51... Ka3 {[%clk 0:00:10.9]} 52. Qa1 {[%clk 0:00:02.6]} 52...
b3 {[%clk 0:00:11.8]} 53. Qc3 {[%clk 0:00:02.5]} 53... Ka4 {[%clk 0:00:11]} 54.
Bc2 {[%clk 0:00:03]} 54... a1=Q {[%clk 0:00:10.5]} 55. Qxa1+ {[%clk 0:00:03.1]}
55... Kb4 {[%clk 0:00:10.7]} 56. Qe1+ {[%clk 0:00:03.1]} 56... Ka3 {[%clk
0:00:11]} 57. Bxb3 {[%clk 0:00:03]} 57... Kb2 {[%clk 0:00:11.4]} 58. Qd2+ {[%clk
0:00:02.6]} 58... Ka3 {[%clk 0:00:11.9]} 59. Qd5 {[%clk 0:00:03.5]} 59... Kb2
{[%clk 0:00:12.3]} 60. f4 {[%clk 0:00:04.3]} 60... Kc3 {[%clk 0:00:12.8]} 61. f5
{[%clk 0:00:05.2]} 61... Kb4 {[%clk 0:00:13.4]} 62. f6 {[%clk 0:00:06.1]} 62...
Ka5 {[%clk 0:00:14]} 63. Qxc5+ {[%clk 0:00:06.4]} 63... Ka6 {[%clk 0:00:13.5]}
64. Qb5+ {[%clk 0:00:06.8]} 64... Ka7 {[%clk 0:00:13.7]} 65. Kd5 {[%clk
0:00:07.4]} 65... Ka8 {[%clk 0:00:13.6]} 66. Kc6 {[%clk 0:00:08.3]} 1-0

[Event "Early-Titled-Tuesday-Blitz-March-05-2024"]
[Site "Chess.com"]
[Date "2024.03.05"]
[Round "8"]
[White "shirovin"]
[Black "DKmirl"]
[Result "0-1"]
[WhiteElo "2059"]
[BlackElo "2324"]
[TimeControl "180+1"]
[EndTime "9:31:22 PST"]
[Termination "DKmirl won on time"]

1. e4 {[%clk 0:03:00.9]} 1... c5 {[%clk 0:03:00]} 2. Nf3 {[%clk 0:02:59]} 2...
Nc6 {[%clk 0:03:00.6]} 3. Bb5 {[%clk 0:02:56.7]} 3... g6 {[%clk 0:02:58.5]} 4.
c3 {[%clk 0:02:55]} 4... Bg7 {[%clk 0:02:54.4]} 5. O-O {[%clk 0:02:52.6]} 5...
Nf6 {[%clk 0:02:53.8]} 6. e5 {[%clk 0:02:51.3]} 6... Nd5 {[%clk 0:02:54]} 7.
Bxc6 {[%clk 0:02:50.7]} 7... bxc6 {[%clk 0:02:52.1]} 8. d4 {[%clk 0:02:51.1]}
8... cxd4 {[%clk 0:02:45.1]} 9. cxd4 {[%clk 0:02:50.9]} 9... Qb6 {[%clk
0:02:28.5]} 10. Nc3 {[%clk 0:02:47.1]} 10... O-O {[%clk 0:02:26.6]} 11. Nxd5
{[%clk 0:02:43.3]} 11... cxd5 {[%clk 0:02:25.4]} 12. b3 {[%clk 0:02:43.8]} 12...
d6 {[%clk 0:02:21.3]} 13. Bf4 {[%clk 0:02:34]} 13... dxe5 {[%clk 0:02:17.3]} 14.
Bxe5 {[%clk 0:02:30.4]} 14... Bg4 {[%clk 0:02:13.2]} 15. Bxg7 {[%clk 0:02:23.2]}
15... Kxg7 {[%clk 0:02:14.1]} 16. h3 {[%clk 0:02:23.3]} 16... Bxf3 {[%clk
0:02:12.5]} 17. Qxf3 {[%clk 0:02:22.9]} 17... Qxd4 {[%clk 0:02:12.4]} 18. Rad1
{[%clk 0:02:18.9]} 18... Qb2 {[%clk 0:02:06.5]} 19. Rxd5 {[%clk 0:02:12.1]}
19... Qxa2 {[%clk 0:02:00.3]} 20. Qc3+ {[%clk 0:02:08.6]} 20... Kg8 {[%clk
0:01:59.2]} 21. Ra1 {[%clk 0:02:04]} 21... Rfc8 {[%clk 0:01:41.5]} 22. Qd4
{[%clk 0:01:53.8]} 22... Qxb3 {[%clk 0:01:35.1]} 23. Rd7 {[%clk 0:01:51.3]}
23... Qe6 {[%clk 0:01:23.8]} 24. Raxa7 {[%clk 0:01:48.2]} 24... Rxa7 {[%clk
0:01:20.2]} 25. Rxa7 {[%clk 0:01:41.5]} 25... Rc1+ {[%clk 0:01:15.3]} 26. Kh2
{[%clk 0:01:40.4]} 26... Qd6+ {[%clk 0:01:15.9]} 27. Qxd6 {[%clk 0:01:38.9]}
27... exd6 {[%clk 0:01:16.8]} 28. Rd7 {[%clk 0:01:37.9]} 28... Rd1 {[%clk
0:01:15.3]} 29. Kg3 {[%clk 0:01:34.6]} 29... Kf8 {[%clk 0:01:15.9]} 30. Kf4
{[%clk 0:01:34]} 30... Ke8 {[%clk 0:01:16.3]} 31. Ra7 {[%clk 0:01:32]} 31... Rd5
{[%clk 0:01:10.1]} 32. g4 {[%clk 0:01:30]} 32... h6 {[%clk 0:01:08.1]} 33. Ke4
{[%clk 0:01:26.8]} 33... Re5+ {[%clk 0:01:04.1]} 34. Kf4 {[%clk 0:01:23.4]}
34... Re6 {[%clk 0:01:01.7]} 35. f3 {[%clk 0:01:22.1]} 35... Re7 {[%clk
0:00:54.1]} 36. Ra6 {[%clk 0:01:20.3]} 36... Kd7 {[%clk 0:00:54.6]} 37. Ra7+
{[%clk 0:01:19.6]} 37... Ke6 {[%clk 0:00:54.2]} 38. Ra6 {[%clk 0:01:19.1]} 38...
Rc7 {[%clk 0:00:53.2]} 39. Ke4 {[%clk 0:01:14.8]} 39... Rc4+ {[%clk 0:00:50.1]}
40. Ke3 {[%clk 0:01:14.4]} 40... Rc3+ {[%clk 0:00:49.7]} 41. Ke4 {[%clk
0:01:13.2]} 41... Rb3 {[%clk 0:00:46.7]} 42. h4 {[%clk 0:01:10.3]} 42... Rb4+
{[%clk 0:00:46.2]} 43. Ke3 {[%clk 0:01:09.2]} 43... h5 {[%clk 0:00:41.4]} 44.
gxh5 {[%clk 0:01:07.3]} 44... gxh5 {[%clk 0:00:41.5]} 45. f4 {[%clk 0:01:05.7]}
45... Rb1 {[%clk 0:00:37.7]} 46. Ra5 {[%clk 0:01:04.5]} 46... f5 {[%clk
0:00:32.1]} 47. Ra8 {[%clk 0:01:00.8]} 47... Rh1 {[%clk 0:00:31.7]} 48. Re8+
{[%clk 0:00:55]} 48... Kf7 {[%clk 0:00:31.1]} 49. Rd8 {[%clk 0:00:54.4]} 49...
Ke7 {[%clk 0:00:31.4]} 50. Rg8 {[%clk 0:00:50.1]} 50... Rxh4 {[%clk 0:00:31]}
51. Rg5 {[%clk 0:00:46.3]} 51... Kf6 {[%clk 0:00:29.6]} 52. Rg8 {[%clk
0:00:46.1]} 52... Rh1 {[%clk 0:00:24.3]} 53. Kd4 {[%clk 0:00:44.7]} 53... Re1
{[%clk 0:00:20.7]} 54. Kd5 {[%clk 0:00:41.7]} 54... Re4 {[%clk 0:00:19.6]} 55.
Kxd6 {[%clk 0:00:41.2]} 55... Rxf4 {[%clk 0:00:20]} 56. Rh8 {[%clk 0:00:39.6]}
56... Kg6 {[%clk 0:00:18.3]} 57. Ke5 {[%clk 0:00:38.5]} 57... Re4+ {[%clk
0:00:18.4]} 58. Kd5 {[%clk 0:00:38.2]} 58... h4 {[%clk 0:00:18.7]} 59. Ra8
{[%clk 0:00:33.4]} 59... Kg5 {[%clk 0:00:18.1]} 60. Rg8+ {[%clk 0:00:31.1]}
60... Kf4 {[%clk 0:00:18]} 61. Rg1 {[%clk 0:00:30.2]} 61... h3 {[%clk 0:00:18]}
62. Rf1+ {[%clk 0:00:28]} 62... Kg3 {[%clk 0:00:18.5]} 63. Rxf5 {[%clk 0:00:27]}
63... Rg4 {[%clk 0:00:19.1]} 64. Rf1 {[%clk 0:00:17.7]} 64... h2 {[%clk
0:00:18.7]} 65. Ra1 {[%clk 0:00:16.8]} 65... Kh3 {[%clk 0:00:18.1]} 0-1

[Event "Early-Titled-Tuesday-Blitz-March-05-2024"]
[Site "Chess.com"]
[Date "2024.03.05"]
[Round "8"]
[White "Pingah9"]
[Black "Al_Shima"]
[Result "1-0"]
[WhiteElo "2597"]
[BlackElo "2440"]
[TimeControl "180+1"]
[EndTime "9:31:23 PST"]
[Termination "Pingah9 won by resignation"]

1. e4 {[%clk 0:03:00.9]} 1... c6 {[%clk 0:02:58.4]} 2. Nc3 {[%clk 0:03:00.1]}
2... d5 {[%clk 0:02:58.7]} 3. Qf3 {[%clk 0:02:59.2]} 3... dxe4 {[%clk
0:02:55.1]} 4. Nxe4 {[%clk 0:03:00.1]} 4... Nf6 {[%clk 0:02:55.5]} 5. Bc4 {[%clk
0:02:58.5]} 5... Nbd7 {[%clk 0:02:53.9]} 6. d4 {[%clk 0:02:57.3]} 6... e6 {[%clk
0:02:48.6]} 7. Ne2 {[%clk 0:02:52.8]} 7... Be7 {[%clk 0:02:44.2]} 8. c3 {[%clk
0:02:51.9]} 8... Nxe4 {[%clk 0:02:41]} 9. Qxe4 {[%clk 0:02:52.8]} 9... Nf6
{[%clk 0:02:41.6]} 10. Qf3 {[%clk 0:02:52.7]} 10... b5 {[%clk 0:02:28.6]} 11.
Bxb5 {[%clk 0:02:40.3]} 11... O-O {[%clk 0:01:44.9]} 12. Bxc6 {[%clk 0:02:38.1]}
12... Rb8 {[%clk 0:01:45.4]} 13. O-O {[%clk 0:02:38]} 13... Ba6 {[%clk
0:01:43.1]} 14. Re1 {[%clk 0:02:35.6]} 14... Qb6 {[%clk 0:01:42.7]} 15. Be4
{[%clk 0:02:30.8]} 15... Nxe4 {[%clk 0:01:41.8]} 16. Qxe4 {[%clk 0:02:31.7]}
16... Bb7 {[%clk 0:01:42.4]} 17. Qg4 {[%clk 0:02:27.8]} 17... f5 {[%clk
0:01:42]} 18. Qg3 {[%clk 0:02:25.5]} 18... Be4 {[%clk 0:01:28.5]} 19. b4 {[%clk
0:02:19.7]} 19... Rf6 {[%clk 0:01:24.7]} 20. f3 {[%clk 0:02:13.9]} 20... Bc6
{[%clk 0:00:50.7]} 21. Bf4 {[%clk 0:02:08]} 21... Rd8 {[%clk 0:00:49.5]} 22. Bc7
{[%clk 0:01:58.5]} 22... Qb7 {[%clk 0:00:43.1]} 23. Bxd8 {[%clk 0:01:56.9]}
23... Bxd8 {[%clk 0:00:41.8]} 24. Rf1 {[%clk 0:01:32.5]} 24... Rg6 {[%clk
0:00:39]} 25. Qf2 {[%clk 0:01:30.9]} 25... Bc7 {[%clk 0:00:37.5]} 26. a4 {[%clk
0:01:09]} 26... Bd5 {[%clk 0:00:36]} 27. Qe3 {[%clk 0:01:00.6]} 27... Qb8 {[%clk
0:00:31.1]} 28. g3 {[%clk 0:00:45.8]} 28... f4 {[%clk 0:00:23.1]} 29. Qd3 {[%clk
0:00:40.5]} 29... fxg3 {[%clk 0:00:22.7]} 30. Qb5 {[%clk 0:00:23.1]} 30... Qd8
{[%clk 0:00:07.4]} 31. h4 {[%clk 0:00:15.2]} 31... h6 {[%clk 0:00:05.8]} 32. Kg2
{[%clk 0:00:14.1]} 32... Qxh4 {[%clk 0:00:03.5]} 33. Rh1 {[%clk 0:00:14.6]}
33... Qf6 {[%clk 0:00:03.2]} 34. Raf1 {[%clk 0:00:13]} 34... Kh7 {[%clk
0:00:02.9]} 35. Qd3 {[%clk 0:00:11.6]} 35... Kg8 {[%clk 0:00:02.3]} 36. c4
{[%clk 0:00:11.7]} 36... Bb7 {[%clk 0:00:02.4]} 37. d5 {[%clk 0:00:11.9]} 37...
exd5 {[%clk 0:00:02.2]} 38. cxd5 {[%clk 0:00:12.8]} 38... Rg5 {[%clk 0:00:02.2]}
39. Rd1 {[%clk 0:00:11.9]} 39... Rxd5 {[%clk 0:00:01.1]} 40. Qc4 {[%clk
0:00:11.8]} 40... Qd6 {[%clk 0:00:01.2]} 41. Nc3 {[%clk 0:00:05.6]} 41... Qe6
{[%clk 0:00:01.7]} 42. Nxd5 {[%clk 0:00:04.6]} 42... Kh7 {[%clk 0:00:01.7]} 43.
Qc2+ {[%clk 0:00:03.6]} 43... Kg8 {[%clk 0:00:01.7]} 44. Nc3 {[%clk 0:00:03.5]}
44... Qf6 {[%clk 0:00:01.8]} 45. Ne4 {[%clk 0:00:03.7]} 45... Qg6 {[%clk
0:00:02.2]} 46. Qc4+ {[%clk 0:00:04]} 46... Kh7 {[%clk 0:00:02.3]} 47. Qxc7
{[%clk 0:00:04.9]} 47... Bxe4 {[%clk 0:00:02.7]} 48. fxe4 {[%clk 0:00:04.7]}
48... Qxe4+ {[%clk 0:00:03.6]} 49. Kxg3 {[%clk 0:00:05.4]} 49... Qe3+ {[%clk
0:00:04.5]} 50. Kh2 {[%clk 0:00:05.2]} 50... Qf2+ {[%clk 0:00:04.5]} 51. Kh3
{[%clk 0:00:05.6]} 51... Qf3+ {[%clk 0:00:05]} 52. Qg3 {[%clk 0:00:06]} 52...
Qh5+ {[%clk 0:00:05.3]} 53. Kg2 {[%clk 0:00:06.4]} 53... Qe2+ {[%clk 0:00:05.8]}
54. Qf2 {[%clk 0:00:06.6]} 54... Qg4+ {[%clk 0:00:06]} 55. Kh2 {[%clk
0:00:06.8]} 55... Qh5+ {[%clk 0:00:05.1]} 56. Kg3 {[%clk 0:00:06.5]} 56... Qg5+
{[%clk 0:00:05.6]} 57. Kf3 {[%clk 0:00:06.9]} 57... Qf5+ {[%clk 0:00:06.2]} 58.
Ke2 {[%clk 0:00:07.2]} 58... Qe4+ {[%clk 0:00:06.6]} 59. Qe3 {[%clk 0:00:07.2]}
59... Qg2+ {[%clk 0:00:07.1]} 60. Kd3 {[%clk 0:00:07.1]} 60... Qd5+ {[%clk
0:00:07.7]} 61. Kc3 {[%clk 0:00:07.6]} 61... Qa2 {[%clk 0:00:07.5]} 62. Qe4+
{[%clk 0:00:07.5]} 62... Kg8 {[%clk 0:00:08]} 63. Rd8+ {[%clk 0:00:07.8]} 63...
Kf7 {[%clk 0:00:08.8]} 64. Rf1+ {[%clk 0:00:07.9]} 1-0